Cogmind - Beta 12 @@@ ROGUE MODE // 2023.09.24 @ 15:26:40 Player: Trantor Result: Destroyed by 8R-AWN with 8R-AWN's Boregun Performance ------------- Evolutions (0) 0 Regions Visited (3) 600 Robots Destroyed (17) 85 Value Destroyed (341) 341 Prototype IDs (2) 40 Alien Tech Used (0) 0 Bonus (0) 0 TOTAL SCORE: 1066 Bonus ------- None Cogmind --------- Core Integrity 0/250 Matter 9/300 Energy 100/100 System Corruption 4% Temperature Cool (0) Movement Treading (240) Ox1 Location -10/Exiles Parts ------- > --- POWER (1) -------- (None) > --- PROPULSION (2) --- Light Treads > --- UTILITY (2) ------ Heat Sink Large Storage Unit > --- WEAPON (2) ------- Improved Light Cannon Improved Light Cannon > --- INVENTORY (15) --- Light Ion Engine Light Treads Compact Wheel High-capacity Matter Pod (200) Targeting Computer Hacking Suite Spread Laser Grenade Launcher Rocket Launcher Mining Laser Hammer Peak State ------------ > --- POWER ------------ Ion Engine > --- PROPULSION ------- Light Treads Light Treads > --- UTILITY ---------- Heat Sink Large Storage Unit > --- WEAPON ----------- Improved Light Cannon Improved Light Cannon > --- INVENTORY -------- Light Ion Engine Light Treads Light Treads Wheel Wheel High-capacity Matter Pod Targeting Computer Hacking Suite Spread Laser Improved Light Cannon Improved Light Cannon Grenade Launcher Rocket Launcher Mining Laser Hammer [Rating: 11] Favorites ----------- Power Ion Engine Engine Ion Engine Power Core Light Nuclear Core Propulsion Light Treads Treads Light Treads Leg Aluminum Leg Utility Large Storage Unit Device Heat Sink Storage Large Storage Unit Protection Light Armor Plating Weapon Improved Light Cannon Energy Gun Spread Laser Ballistic Gun Light Assault Rifle Ballistic Cannon Improved Light Cannon Launcher Grenade Launcher Impact Weapon Hammer Build | -11 -10 -10 -10 ------- Run | Jun Mat Min Exi Slots Evolved . | . . . . Power . | . . . . Propulsion . | . . . . Utility . | . . . . Weapon . | . . . . Parts Attached 25 | 2 12 5 6 Power 3 | . 2 1 . Engine 2 | . 1 1 . Core 1 | . 1 . . Reactor . | . . . . Propulsion 5 | 2 2 . 1 Treads 5 | 2 2 . 1 Leg . | . . . . Wheel . | . . . . Hover . | . . . . Flight . | . . . . Utility 5 | . 3 1 1 Device 2 | . 1 . 1 Storage 2 | . 2 . . Processor . | . . . . Hackware . | . . . . Protection 1 | . . 1 . Artifact . | . . . . Weapon 12 | . 5 3 4 Energy Gun 1 | . 1 . . Energy Cannon . | . . . . Ballistic Gun 2 | . 2 . . Ballistic Cannon 5 | . 1 1 3 Launcher 2 | . . 1 1 Special Weapon . | . . . . Impact Weapon 2 | . 1 1 . Slashing Weapon . | . . . . Piercing Weapon . | . . . . Special Melee Weapon . | . . . . Unidentified Prototypes . | . . . . Parts Lost 6 | . . . 6 Power 1 | . . . 1 Propulsion 2 | . . . 2 Utility 1 | . . . 1 Weapon 2 | . . . 2 Highest Loss Streak 6 | . . . 6 To Critical Strikes 5 | . . . 5 Average Slot Usage (%) 96 | . 96 96 99 Engine 11 | . 11 10 13 Core 1 | . 2 . . Treads 27 | . 27 28 27 Device 6 | . 11 4 . Storage 14 | . 14 14 14 Protection 6 | . . 9 13 Energy Gun 5 | . 13 . . Ballistic Gun 1 | . 3 . . Ballistic Cannon 18 | . 6 27 27 Impact Weapon 2 | . 4 . . Naked Turns . | . . . . Heaviest Build 36 | 11 33 36 36 Greatest Support 40 | 40 40 40 40 Greatest Overweight (x) 3 | . 3 . 1 Average Overweight (x) . | . . . . Largest Inventory Capacity 15 | 8 15 15 15 Average Capacity 13 | 8 11 15 15 Most Carried 15 | 6 14 15 15 Average Carried 12 | 6 10 14 14 Final Capacity 15 | 8 15 15 15 Final Carried 15 | 6 14 15 11 Class Distribution -------------------- 100% | Mutant Dominant Class ---------------- Mutant | -10/Materials Mutant | -10/Mines Mutant | -10/Exiles Resources | -11 -10 -10 -10 ----------- Run | Jun Mat Min Exi Matter Collected 777 | 200 427 150 . Remotely . | . . . . Salvage Created 518 | . 434 46 38 Parts 33 | . 32 1 . Haulers Intercepted 1 | . 1 . . Recyclers Shooed 1 | . 1 . . Parts Field Recycled . | . . . . Retrieved Matter . | . . . . Parts Self-Destructed . | . . . . Prevented . | . . . . Kills | -11 -10 -10 -10 ------- Run | Jun Mat Min Exi Combat Hostiles Destroyed 26 | . 10 9 7 Guns 10 | . 10 . . Cannons 4 | . . 3 1 AOE 12 | . . 6 6 Classes Destroyed 8 | . 6 2 . Builder 1 | . 1 . . Hauler 1 | . 1 . . Recycler 1 | . 1 . . Operator 2 | . 2 . . Swarmer 6 | . 6 . . Grunt 5 | . 4 1 . Demolisher 1 | . . 1 . Assembled 14 | . . 7 7 Best Kill Streak 7 | . 6 7 7 Combat Bots Only 7 | . 3 7 7 Max Kills in Single Turn 4 | . 2 4 3 Gunslinging . | . . . . Exploded 4 | . . 4 3 Melee . | . . . . Uniques/NPCs Destroyed . | . . . . Combat | -11 -10 -10 -10 -------- Run | Jun Mat Min Exi Damage Taken 1437 | . 341 447 649 Core 272 | . 72 73 127 Absorbed by Shields . | . . . . Regen/Repaired (Parts) 186 | . 186 . . Core Remaining (%) 100 | 100 . . . Volleys Fired 92 | . 53 14 25 Largest 2 | . 2 2 2 Hottest 78 | . 65 78 78 Shots Fired 152 | . 82 25 45 Gun 77 | . 77 . . Cannon 70 | . 5 23 42 Launcher 5 | . . 2 3 Special . | . . . . Kinetic 116 | . 51 23 42 Thermal 31 | . 31 . . Explosive 5 | . . 2 3 Electromagnetic . | . . . . Robot Hit Streak 11 | . 11 5 6 Robot Miss Streak 3 | . 3 2 3 Penetration Max . | . . . . Secondary Targets . | . . . . Shots Hit Robots 91 | . 49 13 29 Core Hits 56 | . 28 13 15 Critical Kills . | . . . . Critical Parts Destroyed . | . . . . Critical Strikes 2 | . . 2 . Blast 2 | . . 2 . Melee Attacks 1 | . 1 . . Impact 1 | . 1 . . Slashing . | . . . . Piercing . | . . . . Sneak Attacks . | . . . . Combat Hostiles . | . . . . Follow-up Attacks . | . . . . Damage Inflicted 2112 | . 513 722 877 Guns 456 | . 456 . . Cannons 848 | . 22 260 566 Explosions 765 | . . 454 311 Melee 35 | . 35 . . Ramming 8 | . . 8 . Kinetic 1070 | . 244 260 566 Thermal 234 | . 234 . . Explosive 765 | . . 454 311 Electromagnetic . | . . . . Impact 35 | . 35 . . Slashing . | . . . . Piercing . | . . . . Highest Corruption 4 | . 4 4 4 Average Corruption 3 | . 3 4 4 Corruption Purged . | . . . . Corruption Blocked . | . . . . Effects 46 | . 13 22 11 Message Errors 17 | . 3 10 4 Matter Fused 11 | . 4 4 3 Heat Flow Errors 5 | . 1 2 2 Energy Discharges 4 | . 2 1 1 Parts Rejected 1 | . . 1 . Parts Fused 1 | . 1 . . Data Loss (minor) 1 | . 1 . . Data Loss (major) 1 | . . 1 . Misfires 3 | . 1 1 1 Alerts 2 | . . 2 . Overload Shots . | . . . . Overflow Damage 23 | . . 19 4 Projectiles 10 | . . 10 . Explosions 13 | . . 9 4 Melee . | . . . . Knockbacks 9 | . . 5 4 Impact . | . . . . Kinetic 8 | . . 4 4 Secondary 1 | . . 1 . Self-Inflicted Damage 56 | . . 56 . Shots 2 | . . 2 . Rammed 2 | . . 2 . Targets Rammed 2 | . . 2 . Kicked . | . . . . Crushed . | . . . . Highest Temperature 265 | . 232 265 243 Average Temperature 86 | . 100 57 88 Received Heat Transfer 206 | . 120 46 40 Effects 1 | . . . 1 Energy Bleed 1 | . . . 1 Siege Activations . | . . . . Robots Corrupted . | . . . . Combat Hostiles . | . . . . Parts Fried . | . . . . Impact Corruptions . | . . . . Robots Melted . | . . . . Combat Hostiles . | . . . . Parts Melted 1 | . 1 . . Heat Transferred 495 | . 495 . . Parts Sabotaged . | . . . . Parts Stolen . | . . . . Parts Stripped . | . . . . Power Chain Reactions . | . . . . Missiles Intercepted . | . . . . Alert | -11 -10 -10 -10 ------- Run | Jun Mat Min Exi Peak Influence 265 | . 265 73 . Initial 7 | . . 7 . Average 46 | . 60 27 . Maximum Alert Level 1 | . 1 . . Low Security (%) 99 | 100 98 100 . Level 1 . | . 1 . . Level 2 . | . . . . Level 3 . | . . . . Level 4 . | . . . . Level 5 . | . . . . High Security . | . . . . Max Security . | . . . . Squads Dispatched 2 | . 2 . . Investigation . | . . . . Extermination . | . . . . Reinforcement 2 | . 2 . . Assault . | . . . . Garrison . | . . . . Intercept . | . . . . Searches Triggered . | . . . . Construction Impeded . | . . . . Haulers Reinforced . | . . . . Active Scanning Responses . | . . . . Cargo Convoy Interrupts . | . . . . Stealth | -11 -10 -10 -10 --------- Run | Jun Mat Min Exi Distress Signals 1 | . 1 . . Communications Jammed . | . . . . Distress Signals . | . . . . Times Spotted 46 | . 24 14 8 Peak Tracking Total 10 | . 4 10 10 Tactical Retreats 3 | . . 3 . Traps | -11 -10 -10 -10 ------- Run | Jun Mat Min Exi Traps Triggered 2 | . 2 . . Indirectly . | . . . . Trap Hack Attempts . | . . . . Triggered . | . . . . Disarmed . | . . . . Reprogrammed . | . . . . Reused . | . . . . Traps Extracted . | . . . . Installed . | . . . . Triggered . | . . . . Machines | -11 -10 -10 -10 ---------- Run | Jun Mat Min Exi Machines Disabled 2 | . . . 2 Max in Single Turn 1 | . . . 1 Machines Repaired . | . . . . Machines Sabotaged . | . . . . Overloaded Fab Kills . | . . . . Hacking | -11 -10 -10 -10 --------- Run | Jun Mat Min Exi Machines Accessed 8 | . 5 1 2 Terminals 5 | . 4 1 . Fabricators . | . . . . Repair Stations 1 | . 1 . . Recycling Units . | . . . . Scanalyzers . | . . . . Garrison Access . | . . . . Total Hacks 59 | . 23 4 32 Successful 45 | . 13 . 32 Failed 14 | . 10 4 . Catastrophic 2 | . 2 . . Database Lockouts . | . . . . Manual 16 | . 12 4 . Terminals 19 | . 15 4 . Fabricators . | . . . . Repair Stations 8 | . 8 . . Recycling Units . | . . . . Scanalyzers . | . . . . Garrison Access . | . . . . Terminal Hacks 36 | . 4 . 32 Record 32 | . . . 32 Robot Schematic 2 | . 2 . . Prototype ID Bank 1 | . 1 . . Unreport Threat 1 | . 1 . . Fabricator Hacks . | . . . . Repair Station Hacks 6 | . 6 . . Scan Component 3 | . 3 . . Repair 3 | . 3 . . Recycling Unit Hacks . | . . . . Scanalyzer . | . . . . Garrison Access Hacks . | . . . . Unauthorized Hacks 3 | . 3 . . Terminals 3 | . 3 . . Botnet 3 | . 3 . . Fabricators . | . . . . Repair Stations . | . . . . Recycling Units . | . . . . Scanalyzers . | . . . . Garrison Access . | . . . . Data Cores Recovered . | . . . . Used . | . . . . Hacking Detections 6 | . 5 1 . Full Trace Events . | . . . . Feedback Events . | . . . . Feedback Blocked . | . . . . Robot Schematics Acquired 2 | . 2 . . Robots Built . | . . . . Authchips . | . . . . Time . | . . . . Total Robot Build Rating . | . . . . Part Schematics Acquired . | . . . . Parts Built . | . . . . Authchips . | . . . . Time . | . . . . Total Part Build Rating . | . . . . Parts Repaired 3 | . 3 . . Time 78 | . 78 . . Parts Recycled . | . . . . Recycled Matter . | . . . . Retrieved Matter . | . . . . Retrieved Components . | . . . . Parts Scanalyzed . | . . . . Part Schematics Acquired . | . . . . Parts Damaged . | . . . . Bothacking | -11 -10 -10 -10 ------------ Run | Jun Mat Min Exi Used RIF Installer . | . . . . Robots Hacked . | . . . . Non-combat . | . . . . Combat . | . . . . Robot Hacks Applied . | . . . . Relay Couplers Released . | . . . . Fabnet Peak Effective % . | . . . . Robots Rewired . | . . . . Allies Hacked . | . . . . Hacks Repelled . | . . . . Allies | -11 -10 -10 -10 -------- Run | Jun Mat Min Exi Total Allies . | . . . . Largest Group . | . . . . Highest-Rated Group . | . . . . Highest-Rated Ally . | . . . . Total Orders . | . . . . Ally Attacks . | . . . . Total Damage . | . . . . Kills . | . . . . Allies Corrupted . | . . . . Allies Melted . | . . . . Intel | -11 -10 -10 -10 ------- Run | Jun Mat Min Exi Robot Analysis Total . | . . . . Derelict Logs Recovered 3 | . . 3 . Drone Launches . | . . . . Drone Recoveries . | . . . . Exploration | -11 -10 -10 -10 ------------- Run | Jun Mat Min Exi Turns Passed 3194 | 3 1376 1098 717 Spaces Moved 1721 | 1 684 638 398 Core 23 | . 23 . . Treads 1698 | 1 661 638 398 Legs . | . . . . Wheels . | . . . . Hover . | . . . . Flight . | . . . . Fastest Speed 160 | 160 160 160 160 Average Speed 160 | 160 161 160 161 Slowest Speed 240 | 160 200 160 240 Overloaded Moves . | . . . . Propulsion Burnouts . | . . . . Robots Hopped . | . . . . Cave-ins Triggered . | . . . . Exploration Rate (%) 65 | 2 84 97 79 Regions Visited 3 Branch Regions 2 Pre-discovered Areas 1 | . . . 1 Known Exits Taken . | . . . . Unknown Exits Taken 3 | 1 1 1 . Scrap Searched 2 | . . 2 . Spaces Dug 14 | . 1 13 . Terrain Destroyed 33 | . 1 27 5 Melee . | . . . . Projectile 8 | . 1 5 2 AOE 25 | . . 22 3 Terrain Rammed . | . . . . Walls Destroyed . | . . . . Machines Disabled . | . . . . Actions | -11 -10 -10 -10 --------- Run | Jun Mat Min Exi Total 2008 | 2 888 689 429 Wait 132 | . 106 26 . Move 1718 | . 683 637 398 Hop . | . . . . Pick Up 20 | . 17 3 . Fast Attach 6 | . 5 1 . Attach 4 | . . . 4 Detach 1 | . 1 . . Swap 15 | 2 7 4 2 Drop 17 | . 15 2 . Fire 92 | . 53 14 25 Melee 1 | . 1 . . Ram . | . . . . Kick . | . . . . Crush 2 | . . 2 . Escape Stasis . | . . . . Rewire . | . . . . Trap . | . . . . Miscellaneous . | . . . . Route ------- -11/Junkyard -10/Materials (discovered 3 exits: [*Mat x2] / *Min) -10/Mines (discovered 3 exits: [*Mat x2] / *Exi) -10/Exiles (discovered 1 exit: [*Min]) History --------- Turn | Location | Event 4 | -11/Junkyard | Discovered new exit (range 0) 4 | -11/Junkyard | Entered Materials 330 | -10/Materials | Build established: Mutant 808 | -10/Materials | Discovered new exit (range 10) 942 | -10/Materials | Repaired Lgt. Treads 970 | -10/Materials | Repaired Lgt. Treads 996 | -10/Materials | Repaired Lgt. Treads 1085 | -10/Materials | Discovered new exit (range 7) 1173 | -10/Materials | Discovered new exit (range 5) 1380 | -10/Materials | Entered Mines 1381 | -10/Mines | Assembled infested the area 1382 | -10/Mines | Learned Materials machine intel 1426 | -10/Mines | Destroyed 7 combat bots 1438 | -10/Mines | Received a Rocket Launcher from a helpful Derelict 1500 | -10/Mines | Learned Materials stockpile data 1796 | -10/Mines | Deemed a non-threat by the Exiles lab entrance 1798 | -10/Mines | Discovered new exit (range 5) 1985 | -10/Mines | Core integrity fell below 50% 2173 | -10/Mines | Discovered new exit (range 13) 2249 | -10/Mines | Learned Materials trap positions 2283 | -10/Mines | Discovered new exit (range 14) 2478 | -10/Mines | Entered Exiles 2504 | -10/Exiles | Discovered new exit (range 15) 2557 | -10/Exiles | Met 8R-AWN 2586 | -10/Exiles | Met EX-HEX 2664 | -10/Exiles | Met EX-DEC 2731 | -10/Exiles | Visited The Gauntlet 2992 | -10/Exiles | Learned location of Zion (-7) 3056 | -10/Exiles | Met EX-BIN 3086 | -10/Exiles | Attacked by the Exiles 3138 | -10/Exiles | Destroyed 7 combat bots 3153 | -10/Exiles | Core integrity fell below 20% 3195 | -10/Exiles | Destroyed by 8R-AWN with 8R-AWN's Boregun Last Messages --------------- 03171_ Penetrated by HV Slug. 03171_ Critical hit (Destroy). 03171_ Imp. Light Cannon destroyed. 03171_ Penetrated by HV Slug. 03174_ Critical hit (Destroy). 03174_ Ion Engine destroyed. 03177_ 8R-AWN knocked back. 03178_ Penetrated by HV Slug. 03182_ Critical hit (Destroy). 03182_ Lgt. Treads destroyed. 03182_ HV Slug penetrates Earth. 03182_ HV Slug penetrates Wall. 03186_ HV Slug penetrates FarCom Aligner. 03186_ Penetrated by HV Slug. 03186_ HV Slug penetrates Wall. 03191_ Penetrated by HV Slug. 03191_ HV Slug penetrates FarCom Aligner. 03191_ Penetrated by HV Slug. 03191_ HV Slug penetrates FarCom Aligner. 03195_ Penetrated by HV Slug. Map ----- +----------------------------------------------------+ | ?????????????????????????????????????????????????? | | ?????????????????????????????????????????????????? | | ?????????????????????????????????????????????????? | | ?????????????????????????????????????????????????? | | ????????????????? ????????????????????????????? | | ???????????????# ????????????????????????????? | | ???????????????# ????????????????????????????? | | ???????????????# #???????????????????????????? | | ???????????????# #???????????????????????????? | | ???????????????# ???????????????????????????? | | ???????????????# #???????????????????????????? | | ??????????###??# #???????????????????????????? | | ??????????""""?# #???????????????????????????? | | ???????????" ## #???????????????????????????? | | ????????????? #???????????????????????????? | | ?????????????? #???????????????????????????? | | ???????????????# #???????????????????????????? | | ???????????????# #?#########?????????????????? | | ???????????????# ### """"""#?????????????????? | | ???????????????# # #" """""#?????????????????? | | ???????????????# ; #" """"#?????????????????? | | ??????????????## """"#?????????????????? | | ??????????????#" """"#?????????????????? | | ??????????????#" """#?????????????????? | | ??????????????#" """#?????????????????? | | ??????????????#" % @ """#?????????????????? | | #######???????#" % """#?????????????????? | | """#???????#" """##????????????????? | | "" """#???????## """""????????????????? | | "" #????????# """##????????????????? | | "" #????????#" "X" """""????????????????? | | "" "#????????#" """ # ????????????????? | | ""#????????# """""""#?????????????????? | | "" ""#???????##" ;##########?????????????????? | | ## ###??????##" ;#??????????????????????????? | | ## ###?######"" %g#???????????????????????????? | | X# #"###""""""" %%##??????????????????????????? | | """""" " "" % % ##???###########???????????? | | "" """ " #####"""""""""##??????????? | | " " " """ """"##?????????? | | "" " ??????????? | | " """#?????????? | | " "#?????????? | | " "##????????? | | ""###??????? | | """""" """#??????# | | ######""" "#????### | | ""##????#####""" ##???# | | """##?????????##""" ##?## | | """##???????????#"""" ### | +----------------------------------------------------+ Best States ------------- Heat Dissipation 35 Energy Generation 14 Energy Capacity 250 Matter Stores 300 Matter Capacity 300 Sight Range 16 Terrain Scan Density 10 Armor Coverage 150 Evasion (%) 40 Recoil Reduction 2 Item Schematics ----------------- None Robot Schematics ------------------ G-34 Mercenary | -10/Materials | Hacked S-10 Pest | -10/Materials | Hacked Fabricated ------------ Nothing Alien Tech Used ----------------- None Achievements -------------- None Challenges ------------ None Game ------ Seed RagnarokRagnarokStorm Manual? 0 Play Time 00:25:19 Cumulative 220.2 hours Start 2023.09.24 @ 15:02:59 End 2023.09.24 @ 15:26:40 Sessions 1 Manual Loads 0 Difficulty Rogue Special Mode None Game No. 126 Rogue 82 Adventurer 44 Explorer 0 Win Type - Total 1 Types 1/0/0/0/0/0/0/0/0 Lore% 60 Gallery% 60 Achievement% 57 Wizard Run 0 Options --------- ASCII 0 Keyboard 0 Movement Vi Keybinds 1 Fullscreen 2 Font 18/X11Bold Map View 76x50 Tactical HUD 1 Map Filters NONE Filters NONE Steam 1 RUN: 5dbce187-e5fd-4284-98d1-f3739cbea55d